{"text_format":"3","workbook":"xlsx","n_sheets":4,"sheets":["입찰 양식","차트 데이터","비용 분석 결과","입찰 비용 요약"],"not_rendered":{"charts":1,"images":2,"defined_names":11},"read":"whole","date_system":"1900"}

{"sheet":"입찰 양식","index":0,"n_rows":21,"n_cols":6,"rows_kept":21,"merged":[[0,1,0,4],[1,1,1,2],[7,1,8,1],[7,2,8,2],[10,1,10,5],[12,1,12,5],[14,1,14,5],[15,1,15,2],[15,4,15,5],[16,1,16,2],[16,4,16,5],[18,1,18,5],[19,1,19,2],[19,4,19,5],[20,1,20,2],[20,4,20,5]]}
[null,"건설 입찰 양식"]
[null,"소유자 정보",null,null,"계약자 정보"]
[null,"이름","이 셀에 소유자의 이름을 입력합니다.",null,"회사","이 셀에 계약자의 회사 이름을 입력합니다."]
[null,"주소","이 셀에 소유자의 주소를 입력합니다.",null,"이름","이 셀에 계약자의 이름을 입력합니다."]
[null,"시/도, 우편 번호","이 셀에 소유자의 시, 도, 우편 번호를 입력합니다.",null,"주소","이 셀에 계약자의 주소를 입력합니다."]
[null,"전화 번호","이 셀에 소유자의 전화 번호를 입력합니다.",null,"시/도, 우편 번호","이 셀에 계약자의 시, 도, 우편 번호를 입력합니다."]
[null,"이메일","이 셀에 소유자의 이메일 주소를 입력합니다.",null,"전화 번호","이 셀에 계약자의 전화 번호를 입력합니다."]
[null,"프로젝트 이름","이 셀에 프로젝트 이름을 입력합니다.",null,"이메일","이 셀에 계약자의 이메일 주소를 입력합니다. "]
[{"$nulls":4},"완료 날짜","이 셀에 완료 날짜를 입력합니다."]
[null,"작업 범위"]
[null,"여기에 프로젝트의 작업 범위를 작성합니다. 모든 희망 사양을 입력하세요. \n\n샘플 텍스트: 다량의 계단을 건축하는 모의 프로젝트를 진행할 예정입니다. 프레임 제작에는 2x4 및 2x8 각재와 장선 브라켓만 사용합니다. 계단은 2x4 자재에서 잘라 제작합니다. 2인치 이상의 나사를 사용합니다.  10페니 이상의 못만 사용합니다. 설계 중량은 단별로 최소 500파운드가 됩니다. 단은 해당 집과 같은 수평면상에 설치됩니다. 디딤판은 집에 고정됩니다. 계약자가 청소 작업을 수행합니다."]
[null,"미포함 사항"]
[null,"여기에 미포함 프로젝트 세부 정보를 작성합니다. 이 입찰에 포함되지 않은 모든 정보를 입력하세요. \n\n샘플 텍스트: 레일은 설치하지 않습니다. 지면 준비 작업은 소유자가 수행합니다. 계단 페인팅은 소유자가 수행합니다."]
[null,"회사 제안서"]
[null,"여기에 회사 제안서를 작성합니다. 작업 제안자, 예상 완료 날짜 및 제안 금액을 포함하는 제안 개요를 입력합니다.\n\n샘플 텍스트: 당사 [회사 이름]은 [총 금액]에 대해 [완료 날짜]까지 전술한 작업 범위를 완료할 것을 제안합니다."]
[]
[null,"제출자: (회사 담당자)",null,null,"날짜"]
[null,"소유자 동의"]
[null,"여기에 소유자 동의 내용을 작성합니다. 회사 제안서에 명시된 완료 날짜와 총 금액을 포함하는 확인문에 소유자 이름을 입력합니다. \n\n샘플 텍스트: 본인 [소유자 이름]은 [총 금액]에 대해 [완료 날짜]까지 완료할 것으로 제안된 전술한 작업 범위에 동의합니다."]
[]
[null,"제출자: (주택 소유자 또는 공인 대리인)",null,null,"날짜"]

{"sheet":"차트 데이터","index":1,"n_rows":7,"n_cols":3,"rows_kept":7,"hidden":true}
[]
[null,null,"합계"]
[null,{"$f":"INDEX(BidItems[#Data],MATCH(1,BidItems[높은 비용 순],0),2)","v":"인건비"},{"$f":"INDEX(BidItems[#Data],MATCH(1,BidItems[높은 비용 순],0),4)","v":200}]
[null,{"$f":"INDEX(BidItems[#Data],MATCH(2,BidItems[높은 비용 순],0),2)","v":"2x4x10 각재"},{"$f":"INDEX(BidItems[#Data],MATCH(2,BidItems[높은 비용 순],0),4)","v":99.39999999999999}]
[null,{"$f":"INDEX(BidItems[#Data],MATCH(3,BidItems[높은 비용 순],0),2)","v":"장선 브라켓"},{"$f":"INDEX(BidItems[#Data],MATCH(3,BidItems[높은 비용 순],0),4)","v":74.7}]
[null,{"$f":"INDEX(BidItems[#Data],MATCH(4,BidItems[높은 비용 순],0),2)","v":"2x8x10 각재"},{"$f":"INDEX(BidItems[#Data],MATCH(4,BidItems[높은 비용 순],0),4)","v":33.75}]
[null,{"$f":"INDEX(BidItems[#Data],MATCH(5,BidItems[높은 비용 순],0),2)","v":"장갑 한 쌍, 가죽"},{"$f":"INDEX(BidItems[#Data],MATCH(5,BidItems[높은 비용 순],0),4)","v":15.5}]

{"sheet":"비용 분석 결과","index":2,"n_rows":14,"n_cols":6,"rows_kept":14,"merged":[[0,1,0,4],[1,1,1,4]]}
[null,"비용 분석 결과",{"$nulls":3}," "]
[null,"자재 및 비용 목록"]
[null,"수량","설명","비용","요약","높은 비용 순"]
[null,5,"2x8x10 각재",{"v":6.75,"d":"₩6.75"},{"$f":"IFERROR(BidItems[[#This Row],[비용]]*BidItems[[#This Row],[수량]], \"\")","v":{"v":33.75,"d":"₩33.75"}},{"$f":"_xlfn.RANK.EQ(BidItems[[#This Row],[요약]],BidItems[요약])","v":4}]
[null,20,"2x4x10 각재",{"v":4.97,"d":"₩4.97"},{"$f":"IFERROR(BidItems[[#This Row],[비용]]*BidItems[[#This Row],[수량]], \"\")","v":{"v":99.39999999999999,"d":"₩99.40"}},{"$f":"_xlfn.RANK.EQ(BidItems[[#This Row],[요약]],BidItems[요약])","v":2}]
[null,30,"장선 브라켓",{"v":2.49,"d":"₩2.49"},{"$f":"IFERROR(BidItems[[#This Row],[비용]]*BidItems[[#This Row],[수량]], \"\")","v":{"v":74.7,"d":"₩74.70"}},{"$f":"_xlfn.RANK.EQ(BidItems[[#This Row],[요약]],BidItems[요약])","v":3}]
[null,2,"나사 상자, 2인치",{"v":6.67,"d":"₩6.67"},{"$f":"IFERROR(BidItems[[#This Row],[비용]]*BidItems[[#This Row],[수량]], \"\")","v":{"v":13.34,"d":"₩13.34"}},{"$f":"_xlfn.RANK.EQ(BidItems[[#This Row],[요약]],BidItems[요약])","v":6}]
[null,2,"못 상자, 10페니",{"v":3.25,"d":"₩3.25"},{"$f":"IFERROR(BidItems[[#This Row],[비용]]*BidItems[[#This Row],[수량]], \"\")","v":{"v":6.5,"d":"₩6.50"}},{"$f":"_xlfn.RANK.EQ(BidItems[[#This Row],[요약]],BidItems[요약])","v":7}]
[null,2,"장갑 한 쌍, 가죽",{"v":7.75,"d":"₩7.75"},{"$f":"IFERROR(BidItems[[#This Row],[비용]]*BidItems[[#This Row],[수량]], \"\")","v":{"v":15.5,"d":"₩15.50"}},{"$f":"_xlfn.RANK.EQ(BidItems[[#This Row],[요약]],BidItems[요약])","v":5}]
[null,2,"인건비",{"v":100,"d":"₩100.00"},{"$f":"IFERROR(BidItems[[#This Row],[비용]]*BidItems[[#This Row],[수량]], \"\")","v":{"v":200,"d":"₩200.00"}},{"$f":"_xlfn.RANK.EQ(BidItems[[#This Row],[요약]],BidItems[요약])","v":1}]
[4,null,null,"소계",{"$f":"SUBTOTAL(109,BidItems[요약])","v":{"v":443.18999999999994,"d":"₩443.19"}}]
[5,null,null,"세율",{"v":0.075,"d":"7.50%"}]
[{"$nulls":3},"세금",{"$f":"IFERROR(세율*BidItems[[#Totals],[요약]], \"\")","v":{"v":33.23924999999999,"d":"₩33.24"}}]
[{"$nulls":3},"총합계",{"$f":"IFERROR(세금+BidItems[[#Totals],[요약]], \"\")","v":{"v":476.4292499999999,"d":"₩476.43"}}]

{"sheet":"입찰 비용 요약","index":3,"n_rows":3,"n_cols":4,"rows_kept":3}
[null,"입찰 비용 요약"]
[null,"자재 및 비용 명세",null,"참고 사항"]
[null,"상위 5개의 자재당 비용을 보여주는 원형 차트입니다. 데이터는 비용 명세 워크시트의 입찰 항목 표를 기반으로 합니다.",null,"이 셀에 참고 사항을 입력합니다."]